fUSD/lending_fUSD_20240624
["ID","MTS","AMOUNT","RATE_DAILY","PERIOD"]
[330253632,1719210654783,-500.0,0.00020546,4]
[330253633,1719210654792,-500.0,0.00020546,4]
[330253634,1719210654801,-500.0,0.00020546,4]
[330253635,1719210654810,-500.0,0.00020546,4]
[330253636,1719210654819,-500.0,0.00020546,4]
[330253637,1719210654830,-500.0,0.00020546,4]
[330253638,1719210654838,-500.0,0.00020546,4]
[330253639,1719210654847,-500.0,0.00020546,4]
[330253640,1719210654856,-500.0,0.00020546,4]
[330253641,1719210654866,-500.0,0.00020546,4]
[330253642,1719210654875,-500.0,0.00020546,4]
[330253643,1719210654884,-500.0,0.00020546,4]
[330253644,1719210654894,-500.0,0.00020546,4]
[330253645,1719210654903,-500.0,0.00020546,4]
[330253646,1719210654912,-500.0,0.00020546,4]
[330253647,1719210654923,-500.0,0.00020546,4]
[330253648,1719210654932,-500.0,0.00020546,4]
[330253649,1719210654942,-500.0,0.00020546,4]
[330253650,1719210654951,-500.0,0.00020546,4]
[330253651,1719210654961,-500.0,0.00020546,4]
[330253652,1719210654970,-500.0,0.00020546,4]
[330253653,1719210654980,-500.0,0.00020546,4]
[330253654,1719210654989,-507.5587858,0.00020546,4]
[330253655,1719210654999,-500.0,0.00020546,4]
[330253656,1719210655008,-500.0,0.00020546,4]
[330253657,1719210655018,-500.0,0.00020546,4]
[330253658,1719210655028,-500.0,0.00020546,4]
[330253659,1719210655038,-500.0,0.00020546,4]
[330253660,1719210655047,-500.0,0.00020546,4]
[330253661,1719210655056,-500.0,0.00020546,4]
[330253662,1719210655066,-500.0,0.00020546,4]
[330253663,1719210655075,-500.0,0.00020546,4]
[330253664,1719210655085,-500.0,0.00020546,4]
[330253665,1719210655095,-500.0,0.00020546,4]
[330253666,1719210655104,-500.0,0.00020546,4]
[330253667,1719210655113,-500.0,0.00020546,4]
[330253668,1719210655123,-500.0,0.00020546,4]
[330253669,1719210655132,-500.0,0.00020546,4]
[330253670,1719210655142,-500.0,0.00020546,4]
[330253671,1719210655151,-500.0,0.00020546,4]
[330253672,1719210655161,-500.0,0.00020546,4]
[330253673,1719210655171,-500.0,0.00020546,4]
[330253674,1719210655180,-500.0,0.00020546,4]
[330253675,1719210655189,-555.45724223,0.00020546,4]
[330253676,1719210655199,-500.0,0.00020546,4]
[330253677,1719210655209,-615.15,0.00020546,4]
[330253678,1719210655218,-500.0,0.00020546,4]
[330253679,1719210655228,-500.0,0.00020546,4]
[330253680,1719210655238,-500.0,0.00020546,4]
[330253681,1719210655247,-500.0,0.00020546,4]
[330253682,1719210655257,-500.0,0.00020546,4]
[330253683,1719210655266,-500.0,0.00020546,4]
[330253684,1719210655276,-500.0,0.00020546,4]
[330253685,1719210655285,-500.0,0.00020546,4]
[330253686,1719210655296,-500.0,0.00020546,4]
[330253687,1719210655306,-500.0,0.00020546,4]
[330253688,1719210655316,-500.0,0.00020546,4]
[330253689,1719210655325,-500.0,0.00020546,4]
[330253690,1719210655338,-500.0,0.00020546,4]
[330253691,1719210655350,-500.0,0.00020546,4]
[330253692,1719210655361,-500.0,0.00020546,4]
[330253693,1719210655377,-500.0,0.00020546,4]
[330253694,1719210655386,-500.0,0.00020546,4]
[330253695,1719210655395,-961.79,0.00020546,4]
[330253696,1719210655406,-500.0,0.00020546,4]
[330253697,1719210655416,-500.0,0.00020546,4]
[330253698,1719210655425,-500.0,0.00020546,4]
[330253699,1719210655435,-500.0,0.00020546,4]
[330253700,1719210655444,-500.0,0.00020546,4]
[330253701,1719210655456,-500.0,0.00020546,4]
[330253702,1719210655467,-755.06,0.00020546,4]
[330253703,1719210655477,-500.0,0.00020546,4]
[330253704,1719210655486,-500.0,0.00020546,4]
[330253705,1719210655497,-500.0,0.00020546,4]
[330253706,1719210655507,-789.7,0.00020546,4]
[330253707,1719210655517,-569.0,0.00020546,4]
[330253708,1719210655527,-2177.83,0.00020546,4]
[330253709,1719210655536,-500.0,0.00020546,4]
[330253710,1719210655546,-250.0,0.00020546,4]
[330253711,1719210655556,-4059.46,0.00020546,4]
[330253712,1719210655567,-504.49,0.00020546,4]
[330253713,1719210655577,-500.0,0.00020546,4]
[330253714,1719210655589,-500.0,0.00020546,4]
[330253715,1719210655599,-500.0,0.00020546,4]
[330253716,1719210655608,-500.0,0.00020546,4]
[330253717,1719210655619,-500.0,0.00020546,4]
[330253718,1719210655628,-1923.25,0.00020546,4]
[330253719,1719210655639,-500.0,0.00020546,4]
[330253720,1719210655649,-500.0,0.00020546,4]
[330253721,1719210655658,-500.0,0.00020546,4]
[330253722,1719210655668,-500.0,0.00020546,4]
[330253723,1719210655678,-500.0,0.00020546,4]
[330253724,1719210655688,-500.0,0.00020546,4]
[330253725,1719210655698,-500.0,0.00020546,4]
[330253726,1719210655707,-500.0,0.00020546,4]
[330253727,1719210655717,-991.5687406,0.00020546,4]
[330253728,1719210655762,-312.38331427,0.00020171,2]
[330253729,1719210655772,-1338.82682982,0.00020546,4]
[330253730,1719210655784,-815.97442958,0.00020546,4]
[330253731,1719210655794,-500.0,0.00020546,4]
[330253732,1719210655803,-347.52577042,0.00020546,4]
[330253733,1719210655815,-152.47422958,0.00020546,4]
[330253734,1719210655825,-500.0,0.00020546,4]
[330253735,1719210655835,-500.0,0.00020546,4]
[330253736,1719210655845,-500.0,0.00020546,4]
[330253737,1719210655855,-196.6022275,0.00020546,4]
[330253738,1719210655864,-500.0,0.00020546,4]
[330253739,1719210655874,-500.0,0.00020546,4]
[330253740,1719210655883,-3064.12372683,0.00020546,4]
[330253741,1719210655895,-545.9843168,0.00020546,4]
[330253742,1719210656013,-543.18397851,0.00020546,4]
[330253743,1719210656024,-304.33735203,0.00020546,4]
[330253744,1719210656103,-1730.27062583,0.00020546,4]
[330253745,1719210656112,-500.0,0.00020546,4]
[330253746,1719210656122,-500.0,0.00020546,4]
[330253747,1719210656131,-500.0,0.00020546,4]
[330253748,1719210656142,-500.0,0.00020546,4]
[330253749,1719210656151,-1878.26,0.00020546,4]
[330253750,1719210656161,-500.0,0.00020546,4]
[330253751,1719210656170,-156.24853707,0.00020546,4]
[330253752,1719210656182,-343.75146293,0.00020546,4]
[330253753,1719210656192,-434.05462521,0.00020546,4]
[330253754,1719210656204,-65.94537479,0.00020546,4]
[330253755,1719210656213,-500.0,0.00020546,4]
[330253756,1719210656224,-164.12602754,0.00020546,4]
[330253757,1719210656236,-335.87397246,0.00020546,4]
[330253758,1719210656246,-316.75132292,0.00020546,4]
[330253759,1719210656258,-183.24867708,0.00020546,4]
[330253760,1719210656268,-181.26525066,0.00020546,4]
[330253761,1719210656280,-318.73474934,0.00020546,4]
[330253762,1719210656290,-500.0,0.00020546,4]
[330253763,1719210656300,-328.55026445,0.00020546,4]
[330253764,1719210656312,-171.44973555,0.00020546,4]
[330253765,1719210656322,-500.0,0.00020546,4]
[330253766,1719210656334,-506.66,0.00020546,4]
[330253767,1719210656344,-500.0,0.00020546,4]
[330253768,1719210656353,-500.0,0.00020546,4]
[330253769,1719210656363,-351.6725872,0.00020546,4]
[330253770,1719210656466,-1679.7474128,0.00020546,4]
[330253771,1719210656476,-500.0,0.00020546,4]
[330253772,1719210656486,-500.0,0.00020546,4]
[330253773,1719210656496,-500.0,0.00020546,4]
[330253774,1719210656506,-500.0,0.00020546,4]
[330253775,1719210656516,-995.99965657,0.00020546,4]
[330253776,1719210657763,-415.40598685,0.00019638,2]
[330253777,1719210657777,-320.45556183,0.00019638,2]
[330253778,1719210657789,-264.13845132,0.00019638,2]
[330253779,1719210657799,-150.86154868,0.00020271,4]
[330253780,1719210657811,-349.13845132,0.00020271,4]
[330253781,1719210657821,-500.0,0.00020272,4]
[330253782,1719210657830,-2100.0,0.00020544,2]
[330253783,1719210657840,-500.0,0.00020545,4]
[330253784,1719210657849,-1956.44034343,0.00020546,4]
[330253785,1719210657859,-500.0,0.00020546,4]
[330253786,1719210657869,-500.0,0.00020546,4]
[330253787,1719210657878,-500.0,0.00020546,4]
[330253788,1719210657888,-500.0,0.00020546,4]
[330253789,1719210657898,-500.0,0.00020546,4]
[330253790,1719210657907,-500.0,0.00020546,4]
[330253791,1719210657917,-500.0,0.00020546,4]
[330253792,1719210657927,-2182.13,0.00020546,4]
[330253793,1719210657937,-500.0,0.00020546,4]
[330253794,1719210657947,-500.0,0.00020546,4]
[330253795,1719210657956,-500.0,0.00020546,4]
[330253796,1719210657965,-500.0,0.00020546,4]
[330253797,1719210657975,-1526.01,0.00020546,4]
[330253798,1719210657984,-500.0,0.00020546,4]
[330253799,1719210657994,-500.0,0.00020546,4]
[330253800,1719210658003,-500.0,0.00020546,4]
[330253801,1719210658013,-516.83099498,0.00020546,4]
[330253802,1719210658022,-500.0,0.00020546,4]
[330253803,1719210658031,-500.0,0.00020546,4]
[330253804,1719210658040,-500.0,0.00020546,4]
[330253805,1719210658049,-4172.22,0.00020546,4]
[330253806,1719210658058,-500.0,0.00020546,4]
[330253807,1719210658067,-500.0,0.00020546,4]
[330253808,1719210658076,-500.0,0.00020546,4]
[330253809,1719210658086,-500.0,0.00020546,4]
[330253810,1719210658095,-500.0,0.00020546,4]
[330253811,1719210658104,-500.0,0.00020546,4]
[330253812,1719210658113,-500.0,0.00020546,4]
[330253813,1719210658123,-500.0,0.00020546,4]
[330253814,1719210658132,-500.0,0.00020546,4]
[330253815,1719210658141,-500.0,0.00020546,4]
[330253816,1719210658150,-500.0,0.00020546,4]
[330253817,1719210658159,-500.0,0.00020546,4]
[330253818,1719210658169,-978.29,0.00020546,4]
[330253819,1719210658178,-500.0,0.00020546,4]
[330253820,1719210658187,-500.0,0.00020546,4]
[330253821,1719210658197,-500.0,0.00020546,4]
[330253822,1719210658206,-500.0,0.00020546,4]
[330253823,1719210658215,-573.09,0.00020546,4]
[330253824,1719210658224,-500.0,0.00020546,4]
[330253825,1719210658234,-500.0,0.00020546,4]
[330253826,1719210658243,-500.0,0.00020546,4]
[330253827,1719210658253,-500.0,0.00020546,4]
[330253828,1719210658262,-500.0,0.00020546,4]
[330253829,1719210658271,-500.0,0.00020546,4]
[330253830,1719210658280,-341.19313146,0.00020546,4]
[330253831,1719210658289,-177.44758588,0.00020546,2]
[330253832,1719210658299,-587.0,0.00020578,2]
[330253833,1719210658308,-167.349301,0.00020613,2]
[330253834,1719210658317,-158.315357,0.00020613,2]
[330253835,1719210658326,-968.63585125,0.00020668,2]
[330253836,1719210658338,-898.27862774,0.00020722,2]
[330253837,1719210658347,-1420.45512304,0.00020774,2]
[330253838,1719210658356,-170.23650302,0.00020774,2]
[330253839,1719210658374,-743.41648225,0.00020797,2]
[330253840,1719210658384,-6609.18,0.00020799,4]
[330253841,1719210658394,-6609.18,0.00020799,4]
[330253842,1719210658403,-6625.04,0.00020817,4]
[330253843,1719210658414,-2873.0,0.00020817,4]
[330253844,1719210658423,-3213.55,0.00020817,4]
[330253845,1719210658432,-399.54758283,0.00020817,4]
[330253846,1719210658445,-100.45241717,0.00020817,4]
[330253847,1719210658456,-683.89031847,0.00020817,4]
[330253848,1719210658468,-2043.4,0.00020817,4]
[330253849,1719210722043,-300.0,0.00019499,2]
[330253850,1719210722077,-331.17591647,0.000195,2]
[330253851,1719210722113,-631.17591647,0.000195,2]
[330253852,1719210722203,-631.17591647,0.000195,2]
[330253853,1719210722293,-631.17591647,0.000195,2]
[330253854,1719210722336,-631.17591647,0.000195,2]
[330253855,1719210722400,-631.17591647,0.000195,2]
[330253856,1719210722440,-631.17591647,0.000195,2]
[330253857,1719210722477,-554.76858471,0.000195,2]
[330253858,1719210760389,76.40733176,0.00019605,2]
[330253859,1719210760430,92.97266824,0.00019605,2]
[330253860,1719210791461,204.75806513,0.000195,2]
[330253861,1719210793033,200.0,0.00025895,120]
[330253862,1719210795387,190.58,0.00019573,2]
[330253863,1719210797395,202.706832,0.0002578,120]
[330253865,1719210807033,142.8651831,0.000195,2]
[330253866,1719210807062,26.69416119,0.000195,2]
[330253867,1719210814370,604.48175528,0.000195,2]
[330253868,1719210814401,86.85125441,0.000195,2]
[330253869,1719210824062,544.32466206,0.00014,2]
[330253870,1719210824096,631.17591647,0.00014,2]
[330253871,1719210824132,631.17591647,0.00014,2]
[330253872,1719210824166,297.47752998,0.00014,2]
[330253873,1719210824202,631.17591647,0.00014,2]
[330253874,1719210824256,631.17591647,0.00014,2]
[330253875,1719210824322,631.17591647,0.00014,2]
[330253876,1719210824372,631.17591647,0.00014,2]
[330253877,1719210824425,631.17591647,0.00014,2]
[330253878,1719210824493,631.17591647,0.00014,2]
[330253879,1719210824560,631.17591647,0.00014,2]
[330253881,1719210824607,631.17591647,0.00014,2]
[330253883,1719210824648,631.17591647,0.00014,2]
[330253885,1719210824682,631.17591647,0.00014,2]
[330253887,1719210824717,193.27039544,0.00014,2]
[330253888,1719210824753,631.17591647,0.00014,2]
[330253889,1719210824787,631.17591647,0.00014,2]
[330253890,1719210824820,631.17591647,0.00014,2]
[330253891,1719210824855,631.17591647,0.00014,2]
[330253892,1719210824889,631.17591647,0.00014,2]
[330253893,1719210824924,631.17591647,0.00014,2]
[330253894,1719210824958,631.17591647,0.00014,2]
[330253895,1719210824992,631.17591647,0.00014,2]
[330253896,1719210943127,2481.564919,0.000112,2]
[330253898,1719211005438,481.87186993,0.0001251,2]
[330253899,1719211006633,18766.0154614,0.000112,2]
[330253900,1719211006891,576.11084141,0.000112,2]
[330253901,1719211117893,300.15374837,0.000112,2]
[330253902,1719211132884,300.15374837,0.000112,2]
[330253903,1719211148028,212.08,0.00025933,120]
[330253907,1719211444070,500.0,0.00011,2]
[330253908,1719211494301,218.03958267,0.00013333,2]
[330253909,1719211494916,300.15374837,0.00011,2]
[330253910,1719211496712,10500.5878937,0.00013333,2]
[330253911,1719211522245,16575.61925204,0.00013333,2]
[330253912,1719211599424,300.15374837,0.00013333,2]
[330253913,1719211601920,300.15374837,0.00013333,2]
[330254336,1719211715419,300.15374837,0.00013333,2]
[330254337,1719211747151,367.19990519,0.00013332,2]
[330254338,1719211794736,-283.9733406,0.00013352,2]
[330254339,1719211794768,-641.63079217,0.00013355,2]
[330254340,1719211794803,-106.71581042,0.000139,2]
[330254341,1719211794915,-68.90994373,0.000139,2]
[330254342,1719211794947,-963.40999946,0.000139,2]
[330254343,1719211795004,-556.06234562,0.000139,2]
[330254344,1719211795041,-1032.31994319,0.000139,2]
[330254345,1719211795082,-1032.31994319,0.000139,2]
[330254346,1719211795118,-1032.31994319,0.000139,2]
[330254347,1719211804511,300.15374837,0.00013333,2]
[330254348,1719211832402,-4825.2271754,0.000139,2]
[330254350,1719211832414,-2295.69672832,0.000139,2]
[330254352,1719211832425,-150.0,0.00013973,2]
[330254354,1719211832435,-300.0,0.00013989,2]
[330254358,1719211832444,-419.05327235,0.00014,2]
[330254361,1719211832455,-347.96815075,0.00014,2]
[330254372,1719211833055,-7837.44893848,0.00014,2]
[330254374,1719211833066,-11774.88911757,0.00014,2]
[330254376,1719211833076,-11653.26466375,0.00014,2]
[330254379,1719211833087,-479.30972069,0.00014,2]
[330254382,1719211833098,-24888.51430011,0.00014,2]
[330254385,1719211833109,-611.8,0.00014,2]
[330254388,1719211833120,-619.86998,0.00014,2]
[330254392,1719211833131,-2380.55745511,0.00014,2]
[330254395,1719211833142,-500.0,0.00014,2]
[330254399,1719211833153,-4144.26708576,0.00014,2]
[330254402,1719211833164,-6241.41226186,0.00014,2]
[330254405,1719211833175,-404.4999995,0.00014,2]
[330254408,1719211833187,-704.92261432,0.00014,2]
[330254411,1719211833197,-2332.32978955,0.00014,2]
[330254414,1719211833208,-713.07366266,0.00014,2]
[330254416,1719211833219,-893.59727248,0.00014,2]
[330254422,1719211838428,-902.63081299,0.00014,2]
[330254427,1719211838440,-576.87446552,0.00014,2]
[330254433,1719211840122,-429.3560839,0.00014,2]
[330254435,1719211840133,-16499.53588222,0.00014,2]
[330254438,1719211840144,-4070.16904226,0.00014,2]
[330254441,1719211840724,-922.8938064,0.00014,2]
[330254443,1719211840735,-363.6,0.00014,2]
[330254444,1719211840748,-7347.55812948,0.00014,2]
[330254445,1719211840759,-167152.33447371,0.00014,2]
[330254449,1719211840771,-1035.81827002,0.00014,2]
[330254451,1719211840783,-6951.35312362,0.00014,2]
[330254453,1719211840800,-4130.24694756,0.00014,2]
[330254455,1719211840812,-659.94979241,0.00014,2]
[330254456,1719211840823,-1819.99999776,0.00014,2]
[330254457,1719211840835,-362.35711128,0.00014,2]
[330254458,1719211840846,-1105.43400746,0.00014,2]
[330254459,1719211840857,-1050.51565051,0.00014,2]
[330254460,1719211840870,-1252.02846171,0.00014,2]
[330254461,1719211841236,-50851.26975652,0.00014,2]
[330254462,1719211841247,-453.8784,0.00014,2]
[330254463,1719211841258,-62484.29335375,0.00014,2]
[330254464,1719211841271,-192504.34732084,0.00014,2]
[330254482,1719211843810,-17710.75230613,0.00014,2]
[330254485,1719211843821,-600.64996105,0.00014,2]
[330254487,1719211843833,-381.77114236,0.00014,2]
[330254489,1719211843844,-1005.97649537,0.00014,2]
[330254491,1719211843854,-6563.73797231,0.00014,2]
[330254494,1719211843865,-3979.89705037,0.00014,2]
[330254497,1719211843876,-615.28590621,0.00014,2]
[330254501,1719211843890,-15793.70557583,0.00014,2]
[330254507,1719211843918,-586.53402103,0.00014,2]
[330254511,1719211843929,-1234.99446492,0.00014,2]
[330254515,1719211843940,-2024.70883793,0.00014,2]
[330254518,1719211843951,-400.36535376,0.00014,2]
[330254521,1719211843962,-446.51173508,0.00014,2]
[330254598,1719211844674,-624970.3107656,0.00014,2]
[330254614,1719211844823,-5087.95758776,0.00014,2]
[330254616,1719211844835,-3351.05102859,0.00014,2]
[330254618,1719211844846,-5060.49712032,0.00014,2]
[330254620,1719211844857,-16736.653565,0.00014,2]
[330254622,1719211844868,-1468.79524653,0.00014,2]
[330254624,1719211844883,-281.326473,0.00014,2]
[330254626,1719211844895,-372.51975567,0.00014,2]
[330254628,1719211844906,-450.180002,0.00014,2]
[330254631,1719211844917,-281.326473,0.00014,2]
[330254632,1719211844927,-30738.32767785,0.00014,2]
[330254670,1719211848650,-5272.133228,0.0001393,2]
[330254671,1719211848659,-156077.50083935,0.00014,2]
[330254672,1719211848671,-278.88240566,0.00014,2]
[330254673,1719211848683,-302.0,0.00014,2]
[330254675,1719211848695,-6250.1,0.00014,2]
[330254676,1719211848706,-3545.68283361,0.00014,2]
[330254677,1719211849295,-626.08111507,0.00014,2]
[330254678,1719211849307,-14119.93793719,0.00014,2]
[330254679,1719211849318,-2808.42056497,0.00014,2]
[330254680,1719211849329,-624.58643076,0.00014,2]
[330254681,1719211849340,-61439.64073297,0.00014,2]
[330254682,1719211849351,-673.81125724,0.00014,2]
[330254683,1719211849362,-19355.74930782,0.00014,2]
[330254684,1719211849372,-170.23650302,0.000141,2]
[330254685,1719211849382,-994.3185862,0.000142,2]
[330254686,1719211849391,-464.63530145,0.000143,2]
[330254687,1719211849401,-367.44,0.00014375,2]
[330254688,1719211849410,-807.1965428,0.000144,2]
[330254690,1719211849419,-67749.63667491,0.00015,2]
[330254692,1719211849428,-1392.72,0.00015,2]
[330254694,1719211849437,-994.31858612,0.00015166,2]
[330254695,1719211849446,-807.1965427,0.00015172,2]
[330254696,1719211849455,-464.6353014,0.00015256,2]
[330254697,1719211849464,-414.12,0.00015256,2]
[330254698,1719211849473,-420.0,0.00015326,2]
[330254699,1719211849483,-170.23650302,0.00015541,2]
[330254700,1719211849492,-807.1965427,0.00015944,2]
[330254701,1719211849502,-318.4,0.00016047,2]
[330254702,1719211849511,-887.93932126,0.0001613,2]
[330254703,1719211849521,-994.31858612,0.00016131,2]
[330254704,1719211849531,-944.14155343,0.00016161,2]
[330254705,1719211849540,-558.84,0.00016179,2]
[330254706,1719211849554,-464.6353014,0.00016213,2]
[330254707,1719211849564,-717.75,0.00016258,2]
[330254708,1719211849574,-447.47,0.00016275,2]
[330254709,1719211849583,-1226.68,0.00016293,2]
[330254710,1719211849593,-174.77,0.00016335,2]
[330254711,1719211849603,-10000.0,0.00016341,2]
[330254712,1719211849612,-1000.0,0.00016359,2]
[330254713,1719211849622,-250.0,0.00016376,2]
[330254714,1719211849632,-23900.0,0.0001639,2]
[330254715,1719211849642,-179.68,0.00016529,2]
[330254716,1719211849651,-740.15,0.00016566,2]
[330254717,1719211849660,-367.44,0.00016638,2]
[330254718,1719211849670,-807.1965427,0.00016715,2]
[330254719,1719211849681,-587.0,0.00016791,2]
[330254720,1719211849691,-1859.26,0.00016795,2]
[330254721,1719211849701,-1063.5,0.00016852,3]
[330254722,1719211849711,-170.23650302,0.00016982,2]
[330254723,1719211849720,-994.31858612,0.00017097,2]
[330254724,1719211849730,-464.6353014,0.00017169,2]
[330254725,1719211849739,-212.08,0.00017289,2]
[330254726,1719211849749,-807.1965427,0.00017487,2]
[330254727,1719211849760,-299.99,0.00017534,4]
[330254728,1719211849771,-256.817767,0.00017808,2]
[330254729,1719211849781,-318.4,0.00018053,2]
[330254730,1719211849792,-994.31858612,0.00018062,2]
[330254731,1719211849804,-464.6353014,0.00018126,2]
[330254732,1719211849813,-807.1965427,0.00018259,2]
[330254733,1719211849823,-823.0,0.00018395,2]
[330254734,1719211849834,-1000.0,0.00018404,2]
[330254735,1719211849844,-170.23650302,0.00018424,2]
[330254736,1719211849854,-256.817767,0.0001863,2]
[330254737,1719211849864,-250.0,0.00018675,2]
[330254738,1719211849876,-150.0,0.00018811,2]
[330254739,1719211849885,-163.15,0.000189,2]
[330254740,1719211849895,-367.44,0.00018902,2]
[330254741,1719211849905,-558.84,0.00018919,2]
[330254742,1719211849915,-994.31858612,0.00019028,2]
[330254743,1719211849924,-807.1965427,0.00019031,2]
[330254744,1719211849934,-150.0,0.00019047,2]
[330254745,1719211849943,-464.6353014,0.00019082,2]
[330254746,1719211849952,-631.3570611,0.00019178,2]
[330254747,1719211849962,-500.0,0.00019178,2]
[330254748,1719211849971,-482.37416445,0.00019178,2]
[330254749,1719211849980,-500.0,0.00019178,2]
[330254750,1719211849989,-500.0,0.00019178,2]
[330254751,1719211849999,-500.0,0.00019178,2]
[330254752,1719211850008,-500.0,0.00019178,2]
[330254753,1719211850018,-585.5482616,0.00019178,2]
[330254754,1719211850028,-500.0,0.00019178,2]
[330254755,1719211850037,-611.44144284,0.00019178,2]
[330254756,1719211850047,-500.0,0.00019178,2]
[330254757,1719211850057,-500.0,0.00019178,2]
[330254758,1719211850066,-500.0,0.00019178,2]
[330254759,1719211850076,-500.0,0.00019178,2]
[330254760,1719211850086,-500.0,0.00019178,2]
[330254761,1719211850096,-500.0,0.00019178,2]
[330254762,1719211850106,-500.0,0.00019178,2]
[330254763,1719211850115,-590.02010925,0.00019178,2]
[330254764,1719211850125,-502.14516824,0.00019178,2]
[330254765,1719211850135,-500.0,0.00019178,2]
[330254766,1719211850145,-622.5969767,0.00019178,2]
[330254767,1719211850155,-500.0,0.00019178,2]
[330254768,1719211850164,-544.30073939,0.00019178,2]
[330254769,1719211850174,-500.0,0.00019178,2]
[330254770,1719211850183,-500.0,0.00019178,2]
[330254771,1719211850193,-500.0,0.00019178,2]
[330254772,1719211850202,-500.0,0.00019178,2]
[330254773,1719211850211,-500.0,0.00019178,2]
[330254774,1719211850220,-500.0,0.00019178,2]
[330254775,1719211850233,-500.0,0.00019178,2]
[330254776,1719211850244,-500.0,0.00019178,2]
[330254777,1719211850253,-508.13,0.00019178,2]
[330254778,1719211850262,-500.0,0.00019178,2]
[330254779,1719211850271,-500.0,0.00019178,2]
[330254780,1719211850281,-500.0,0.00019178,2]
[330254781,1719211850290,-500.0,0.00019178,2]
[330254782,1719211850299,-500.0,0.00019178,2]
[330254783,1719211850309,-616.56,0.00019178,2]
[330254784,1719211850318,-500.0,0.00019178,2]
[330254785,1719211850328,-500.0,0.00019178,2]
[330254786,1719211850337,-500.0,0.00019178,2]
[330254787,1719211850347,-500.0,0.00019178,2]
[330254788,1719211850357,-500.0,0.00019178,2]
[330254789,1719211850367,-619.19,0.00019178,2]
[330254790,1719211850377,-500.0,0.00019178,2]
[330254791,1719211850386,-500.0,0.00019178,2]
[330254792,1719211850396,-500.0,0.00019178,2]
[330254793,1719211850406,-500.0,0.00019178,2]
[330254794,1719211850416,-500.0,0.00019178,2]
[330254795,1719211850425,-500.0,0.00019178,2]
[330254796,1719211850738,-500.0,0.00019178,2]
[330254797,1719211850748,-500.0,0.00019178,2]
[330254798,1719211850758,-500.0,0.00019178,2]
[330254799,1719211850767,-500.0,0.00019178,2]
[330254800,1719211850780,-500.0,0.00019178,2]
[330254801,1719211850791,-500.0,0.00019178,2]
[330254802,1719211850804,-500.0,0.00019178,2]
[330254803,1719211850814,-500.0,0.00019178,2]
[330254804,1719211850823,-147.46888151,0.00019178,2]
[330254805,1719211850839,-352.53111849,0.00019178,2]
[330254806,1719211850850,-500.0,0.00019178,2]
[330254807,1719211850860,-500.0,0.00019178,2]
[330254808,1719211850870,-500.0,0.00019178,2]
[330254809,1719211850883,-500.0,0.00019178,2]
[330254810,1719211850894,-500.0,0.00019178,2]
[330254811,1719211850904,-500.0,0.00019178,2]
[330254812,1719211850913,-500.0,0.00019178,2]
[330254813,1719211850923,-150.0,0.00019178,2]
[330254814,1719211850933,-500.0,0.00019178,2]
[330254815,1719211850943,-500.0,0.00019178,2]
[330254816,1719211850952,-500.0,0.00019178,2]
[330254817,1719211850962,-500.0,0.00019178,2]
[330254818,1719211850972,-229.06623346,0.00019178,2]
[330254819,1719211850984,-270.93376654,0.00019178,2]
[330254820,1719211850993,-247.61,0.00019178,2]